[Event "Austria Championship Blitz 2024"]
[Site "Innsbruck"]
[Date "2024.06.01"]
[Round "3.5"]
[White "Khalakhan, Jurij"]
[Black "Platzgummer, Fabian"]
[Result "0-1"]
[ECO "A01"]
[WhiteElo "2175"]
[BlackElo "2311"]
[Annotator "RC"]
[PlyCount "130"]
[EventDate "2024.06.01"]
[EventType "swiss"]
[EventCountry "AUT"]
[SourceTitle "playchess.com"]
[Source "ChessBase"]
[SourceQuality "1"]
[TimeControl "180+2"]

1. b3 {[%emt 0:00:00]} Nf6 {[%emt 0:00:01]} 2. Bb2 {[%emt 0:00:01]} d6 {[%emt 0:00:02]} 3. g3 {[%emt 0:00:05]} e5 {[%emt 0:00:01]} 4. Bg2 {[%emt 0:00:01]} Be7 {[%emt 0:00:03]} 5. e3 {[%emt 0:00:01]} O-O {[%emt 0:00:01]} 6. Ne2 {[%emt 0:00:01]} c5 {[%emt 0:00:05]} 7. c4 {[%emt 0:00:09]} Re8 {[%emt 0:00:12]} 8. Qc2 {[%emt 0:00:04]} Nc6 {[%emt 0:00:02]} 9. a3 {[%emt 0:00:01]} Bg4 {[%emt 0:00:13]} 10. d3 {[%emt 0:00:06]} Rc8 {[%emt 0:00:05]} 11. Nd2 {[%emt 0:00:07]} Qd7 {[%emt 0:00:03]} 12. h3 {[%emt 0:00:09]} Bh5 {[%emt 0:00:01]} 13. Nc3 {[%emt 0:00:18]} Bd8 {[%emt 0:00:09]} 14. O-O {[%emt 0:00:02]} a6 {[%emt 0:00:09]} 15. Rae1 {[%emt 0:00:03]} Rb8 {[%emt 0:00:07]} 16. Nde4 {[%emt 0:00:19]} Nxe4 {[%emt 0:00:05]} 17. dxe4 {[%emt 0:00:03]} Ne7 {[%emt 0:00:10]} 18. f4 {[%emt 0:00:21]} f6 {[%emt 0:00:03]} 19. g4 {[%emt 0:00:18]} Bf7 {[%emt 0:00:01]} 20. Rd1 {[%emt 0:00:01]} b5 {[%emt 0:00:17]} 21. cxb5 {[%emt 0:00:01]} axb5 {[%emt 0:00:02]} 22. Nd5 {[%emt 0:00:40]} Nxd5 {[%emt 0:00:29]} 23. exd5 {[%emt 0:00:02]} Bb6 {[%emt 0:00:01]} 24. fxe5 {[%emt 0:00:11]} dxe5 {[%emt 0:00:13]} 25. Be4 {[%emt 0:00:12]} h6 {[%emt 0:00:05]} 26. Bf5 {[%emt 0:00:09]} Qa7 {[%emt 0:00:06]} 27. Kg2 {[%emt 0:00:05]} e4 {[%emt 0:00:27]} 28. Bxe4 {[%emt 0:00:06]} Qe7 {[%emt 0:00:11]} 29. Bh7+ {[%emt 0:00:02]} Kh8 {[%emt 0:00:01]} 30. Rfe1 {[%emt 0:00:13]} Qd6 {[%emt 0:00:05]} 31. e4 {[%emt 0:00:08]} Bc7 {[%emt 0:00:18]} 32. Kf1 {[%emt 0:00:03]} Qg3 {[%emt 0:00:05]} 33. Qg2 {[%emt 0:00:01]} Qxg2+ {[%emt 0:00:02]} 34. Kxg2 {[%emt 0:00:02]} Kxh7 {[%emt 0:00:00]} 35. Rc1 {[%emt 0:00:03]} Bd6 {[%emt 0:00:01]} 36. Rc2 {[%emt 0:00:01]} Bg6 {[%emt 0:00:02]} 37. Rce2 {[%emt 0:00:01]} Re7 {[%emt 0:00:01]} 38. Kf3 {[%emt 0:00:01]} c4 {[%emt 0:00:01]} 39. b4 {[%emt 0:00:02]} Rbe8 {[%emt 0:00:02]} 40. Bd4 {[%emt 0:00:02]} h5 {[%emt 0:00:03]} 41. Bc5 {[%emt 0:00:02]} Rd7 {[%emt 0:00:07]} 42. Ra1 {[%emt 0:00:02]} Ra8 {[%emt 0:00:01]} 43. Rea2 {[%emt 0:00:01]} Be5 {[%emt 0:00:01]} 44. Rd1 {[%emt 0:00:02]} Ra6 {[%emt 0:00:02]} 45. Ke3 {[%emt 0:00:06]} Rd8 {[%emt 0:00:03]} 46. Bd4 {[%emt 0:00:02]} Re8 {[%emt 0:00:05]} 47. Bxe5 {[%emt 0:00:02]} Rxe5 {[%emt 0:00:00]} 48. Rd4 {[%emt 0:00:00]} Ra8 {[%emt 0:00:03]} 49. Kf4 {[%emt 0:00:01]} Rae8 {[%emt 0:00:02]} 50. Re2 {[%emt 0:00:01]} Bf7 {[%emt 0:00:02]} 51. Re3 {[%emt 0:00:04]} g5+ {[%emt 0:00:01]} 52. Kf3 {[%emt 0:00:01]} Bg6 {[%emt 0:00:01]} 53. a4 {[%emt 0:00:04]} bxa4 {[%emt 0:00:02]} 54. Rxc4 {[%emt 0:00:01]} a3 {[%emt 0:00:01]} 55. Rxa3 {[%emt 0:00:01]} Bxe4+ {[%emt 0:00:01]} 56. Kf2 {[%emt 0:00:03]} Bxd5 {[%emt 0:00:02]} 57. Rc7+ {[%emt 0:00:01]} R8e7 {[%emt 0:00:04]} 58. Raa7 {[%emt 0:00:00]} Rxc7 {[%emt 0:00:01]} 59. Rxc7+ {[%emt 0:00:01]} Kg6 {[%emt 0:00:00]} 60. b5 {[%emt 0:00:06]} hxg4 {[%emt 0:00:06]} 61. hxg4 {[%emt 0:00:01]} Be6 {[%emt 0:00:00]} 62. b6 {[%emt 0:00:03]} Rb5 {[%emt 0:00:06]} 63. b7 {[%emt 0:00:05]} Bxg4 {[%emt 0:00:02]} 64. Rc4 {[%emt 0:00:02]} Bf5 {[%emt 0:00:06]} 65. Rc7 {[%emt 0:00:02]} Be4 {[%emt 0:00:01]} 0-1

[Event "Austria Championship Blitz 2024"]
[Site "Innsbruck"]
[Date "2024.06.01"]
[Round "3.6"]
[White "Lerch, Johannes"]
[Black "Zanon, Magnus"]
[Result "1/2-1/2"]
[ECO "A81"]
[WhiteElo "2208"]
[BlackElo "2092"]
[Annotator "RC"]
[PlyCount "73"]
[EventDate "2024.06.01"]
[EventType "swiss"]
[EventCountry "AUT"]
[SourceTitle "playchess.com"]
[Source "ChessBase"]
[SourceQuality "1"]
[TimeControl "180+2"]

1. Nf3 {[%emt 0:00:01]} f5 {[%emt 0:00:01]} 2. g3 {[%emt 0:00:01]} Nf6 {[%emt 0:00:02]} 3. Bg2 d6 {[%emt 0:03:05]} 4. d4 {[%emt 0:00:02]} g6 {[%emt 0:00:00]} 5. b4 {[%emt 0:00:02]} Bg7 {[%emt 0:00:00]} 6. O-O {[%emt 0:00:01]} O-O {[%emt 0:00:00]} 7. Bb2 {[%emt 0:00:02]} Qe8 {[%emt 0:00:00]} 8. c4 {[%emt 0:00:03]} Ne4 {[%emt 0:00:00]} 9. Nbd2 {[%emt 0:00:07]} c6 {[%emt 0:00:00]} 10. Qc2 {[%emt 0:00:01]} Nxd2 {[%emt 0:00:00]} 11. Qxd2 {[%emt 0:00:03]} e5 {[%emt 0:00:00]} 12. dxe5 {[%emt 0:00:10]} dxe5 {[%emt 0:00:00]} 13. Rfd1 {[%emt 0:00:08]} h6 {[%emt 0:00:00]} 14. Qc2 {[%emt 0:00:04]} Na6 {[%emt 0:00:00]} 15. a3 {[%emt 0:00:01]} Qe7 {[%emt 0:00:00]} 16. Nh4 {[%emt 0:00:08]} Qf7 {[%emt 0:00:00]} 17. b5 {[%emt 0:00:01]} Nc5 {[%emt 0:00:00]} 18. bxc6 {[%emt 0:00:06]} bxc6 {[%emt 0:00:00]} 19. Bxc6 {[%emt 0:00:06]} Rb8 {[%emt 0:00:00]} 20. Bd5 {[%emt 0:00:04]} Be6 {[%emt 0:00:00]} 21. Bc3 {[%emt 0:00:13]} e4 {[%emt 0:00:00]} 22. Bxg7 {[%emt 0:00:09]} Qxg7 {[%emt 0:00:00]} 23. Ng2 {[%emt 0:00:14]} Rb2 {[%emt 0:00:00]} 24. Bxe6+ {[%emt 0:00:13]} Nxe6 {[%emt 0:00:00]} 25. Qa4 {[%emt 0:00:09]} Rxe2 {[%emt 0:00:03]} 26. Qc6 {[%emt 0:00:35]} Ng5 {[%emt 0:00:10]} 27. Nf4 {[%emt 0:00:06]} Rd2 {[%emt 0:00:05]} 28. Qxg6 {[%emt 0:00:32]} Rfd8 {[%emt 0:00:08]} 29. Qxg7+ {[%emt 0:00:03]} Kxg7 {[%emt 0:00:02]} 30. Rxd2 {[%emt 0:00:08]} Rxd2 {[%emt 0:00:02]} 31. h4 {[%emt 0:00:05]} Nf3+ {[%emt 0:00:01]} 32. Kg2 {[%emt 0:00:01]} Rc2 {[%emt 0:00:02]} 33. c5 {[%emt 0:00:03]} Kf6 {[%emt 0:00:06]} 34. Rb1 {[%emt 0:00:08]} Rxc5 {[%emt 0:00:07]} 35. Rb7 {[%emt 0:00:08]} Ra5 {[%emt 0:00:02]} 36. Rb3 {[%emt 0:00:01]} Rc5 {[%emt 0:00:05]} 37. Rb1 {[%emt 0:00:08]} 1/2-1/2

[Event "Austria Championship Blitz 2024"]
[Site "Innsbruck"]
[Date "2024.06.01"]
[Round "3.7"]
[White "Erhard, Jakob"]
[Black "Kilgus, Georg"]
[Result "0-1"]
[ECO "C50"]
[WhiteElo "2057"]
[BlackElo "2362"]
[Annotator "RC"]
[PlyCount "86"]
[EventDate "2024.06.01"]
[EventType "swiss"]
[EventCountry "AUT"]
[SourceTitle "playchess.com"]
[Source "ChessBase"]
[SourceQuality "1"]
[TimeControl "180+2"]

1. e4 {[%emt 0:00:01]} e5 {[%emt 0:00:00]} 2. Nf3 {[%emt 0:00:01]} Nc6 {[%emt 0:00:01]} 3. Bc4 {[%emt 0:00:01]} Nf6 {[%emt 0:00:01]} 4. d3 {[%emt 0:00:01]} h6 {[%emt 0:00:02]} 5. Nc3 {[%emt 0:00:02]} Bc5 {[%emt 0:00:37]} 6. a3 {[%emt 0:00:01]} d6 {[%emt 0:00:28]} 7. Be3 {[%emt 0:00:01]} Bxe3 8. fxe3 {[%emt 0:00:02]} O-O {[%emt 0:00:08]} 9. Qd2 {[%emt 0:00:05]} Re8 {[%emt 0:00:09]} 10. O-O-O {[%emt 0:00:02]} Be6 {[%emt 0:00:01]} 11. Bxe6 {[%emt 0:00:10]} Rxe6 {[%emt 0:00:00]} 12. h3 {[%emt 0:00:02]} Rb8 {[%emt 0:00:05]} 13. Rhg1 {[%emt 0:00:02]} b5 {[%emt 0:00:00]} 14. Na2 {[%emt 0:00:03]} a5 {[%emt 0:00:01]} 15. g4 {[%emt 0:00:01]} Nh7 {[%emt 0:00:15]} 16. h4 {[%emt 0:00:03]} b4 {[%emt 0:00:10]} 17. axb4 {[%emt 0:00:03]} axb4 {[%emt 0:00:02]} 18. b3 {[%emt 0:00:02]} Qc8 {[%emt 0:00:02]} 19. Kb2 {[%emt 0:00:06]} Qa6 {[%emt 0:00:12]} 20. Ra1 {[%emt 0:00:05]} Qa3+ {[%emt 0:00:02]} 21. Kb1 {[%emt 0:00:02]} Ra8 {[%emt 0:00:12]} 22. g5 {[%emt 0:00:12]} h5 {[%emt 0:00:08]} 23. Qc1 {[%emt 0:00:02]} Qa7 {[%emt 0:00:13]} 24. Qd2 {[%emt 0:00:27]} Nf8 {[%emt 0:00:02]} 25. Re1 {[%emt 0:00:25]} Ree8 {[%emt 0:00:33]} 26. Kc1 {[%emt 0:00:06]} Reb8 {[%emt 0:00:06]} 27. Kd1 {[%emt 0:00:01]} Rb5 {[%emt 0:00:04]} 28. Ke2 {[%emt 0:00:12]} Ra5 {[%emt 0:00:01]} 29. Nxb4 {[%emt 0:00:10]} Nxb4 {[%emt 0:00:00]} 30. Rxa5 {[%emt 0:01:31]} Qxa5 {[%emt 0:00:02]} 31. Kf2 {[%emt 0:00:00]} Qb6 {[%emt 0:00:01]} 32. c3 {[%emt 0:00:00]} Ra2 {[%emt 0:00:02]} 33. Re2 {[%emt 0:00:00]} Rxd2 {[%emt 0:00:03]} 34. Rxd2 {[%emt 0:00:00]} Nc6 {[%emt 0:00:06]} 35. b4 {[%emt 0:00:00]} Qa7 {[%emt 0:00:01]} 36. Ne1 {[%emt 0:00:00]} Ne6 {[%emt 0:00:03]} 37. Nc2 {[%emt 0:00:00]} Qa2 {[%emt 0:00:02]} 38. Ke2 {[%emt 0:00:00]} Qb1 {[%emt 0:00:02]} 39. Na3 {[%emt 0:00:00]} Qh1 {[%emt 0:00:04]} 40. Nc4 {[%emt 0:00:00]} Qxh4 {[%emt 0:00:02]} 41. b5 {[%emt 0:00:00]} Ne7 {[%emt 0:00:03]} 42. Kd1 {[%emt 0:00:00]} Qxg5 {[%emt 0:00:04]} 43. Kc2 {[%emt 0:00:00]} h4 {[%emt 0:00:01]} 0-1

[Event "Austria Championship Blitz 2024"]
[Site "Innsbruck"]
[Date "2024.06.01"]
[Round "3.8"]
[White "Haralcic, Edin"]
[Black "Balint, Peter"]
[Result "0-1"]
[ECO "D04"]
[WhiteElo "1936"]
[BlackElo "2343"]
[Annotator "RC"]
[PlyCount "66"]
[EventDate "2024.06.01"]
[EventType "swiss"]
[EventCountry "AUT"]
[SourceTitle "playchess.com"]
[Source "ChessBase"]
[SourceQuality "1"]
[TimeControl "180+2"]

1. Nf3 {[%emt 0:00:04]} Nf6 {[%emt 0:00:00]} 2. b3 {[%emt 0:00:00]} g6 {[%emt 0:00:06]} 3. Bb2 {[%emt 0:00:01]} Bg7 {[%emt 0:00:01]} 4. e3 {[%emt 0:00:01]} O-O {[%emt 0:00:03]} 5. d4 {[%emt 0:00:01]} d5 {[%emt 0:00:01]} 6. Nbd2 {[%emt 0:00:04]} c5 {[%emt 0:00:14]} 7. h3 {[%emt 0:00:03]} Nc6 {[%emt 0:00:02]} 8. a3 {[%emt 0:00:06]} b6 {[%emt 0:00:06]} 9. Bd3 {[%emt 0:00:02]} Bb7 {[%emt 0:00:03]} 10. O-O {[%emt 0:00:02]} Rc8 {[%emt 0:00:04]} 11. Re1 {[%emt 0:00:07]} Re8 {[%emt 0:00:27]} 12. Rc1 {[%emt 0:00:06]} cxd4 {[%emt 0:00:04]} 13. exd4 {[%emt 0:00:03]} Rc7 {[%emt 0:00:17]} 14. c4 {[%emt 0:00:18]} dxc4 {[%emt 0:00:24]} 15. bxc4 {[%emt 0:00:07]} e6 {[%emt 0:00:04]} 16. Ne4 {[%emt 0:00:28]} Rd7 {[%emt 0:00:20]} 17. Qe2 {[%emt 0:00:23]} Nxe4 {[%emt 0:00:49]} 18. Bxe4 {[%emt 0:00:02]} Na5 {[%emt 0:00:00]} 19. Bxb7 {[%emt 0:00:04]} Nxb7 {[%emt 0:00:01]} 20. Ne5 {[%emt 0:00:24]} Rc7 {[%emt 0:00:09]} 21. Qf3 {[%emt 0:00:11]} Nd6 {[%emt 0:00:07]} 22. c5 {[%emt 0:00:29]} Nf5 {[%emt 0:00:05]} 23. cxb6 {[%emt 0:00:08]} Rxc1 {[%emt 0:00:01]} 24. Rxc1 {[%emt 0:00:02]} Qxb6 {[%emt 0:00:03]} 25. Qc6 {[%emt 0:00:17]} Qxc6 {[%emt 0:00:03]} 26. Rxc6 {[%emt 0:00:07]} Rb8 {[%emt 0:00:01]} 27. Rc2 {[%emt 0:00:07]} h5 {[%emt 0:00:03]} 28. g4 {[%emt 0:00:02]} hxg4 {[%emt 0:00:01]} 29. hxg4 {[%emt 0:00:00]} Ne7 {[%emt 0:00:05]} 30. Nd7 {[%emt 0:00:05]} Rd8 {[%emt 0:00:02]} 31. Ne5 {[%emt 0:00:07]} Nd5 {[%emt 0:00:02]} 32. Kg2 {[%emt 0:00:01]} Rb8 {[%emt 0:00:05]} 33. f3 {[%emt 0:00:02]} Ne3+ {[%emt 0:00:01]} 0-1

[Event "Austria Championship Blitz 2024"]
[Site "Innsbruck"]
[Date "2024.06.01"]
[Round "3.9"]
[White "Myagmarsuren, Mandukhai"]
[Black "Froewis, Annika"]
[Result "0-1"]
[ECO "D36"]
[WhiteElo "2092"]
[BlackElo "2075"]
[Annotator "RC"]
[PlyCount "104"]
[EventDate "2024.06.01"]
[EventType "swiss"]
[EventCountry "AUT"]
[SourceTitle "playchess.com"]
[Source "ChessBase"]
[SourceQuality "1"]
[TimeControl "180+2"]

1. d4 {[%emt 0:00:01]} d5 {[%emt 0:00:00]} 2. c4 {[%emt 0:00:02]} e6 {[%emt 0:00:01]} 3. Nc3 {[%emt 0:00:02]} Nf6 {[%emt 0:00:01]} 4. cxd5 {[%emt 0:00:02]} exd5 {[%emt 0:00:01]} 5. Bg5 {[%emt 0:00:02]} Be7 {[%emt 0:00:01]} 6. e3 {[%emt 0:00:01]} c6 {[%emt 0:00:00]} 7. Qc2 {[%emt 0:00:01]} Nbd7 {[%emt 0:00:06]} 8. Bd3 {[%emt 0:00:02]} O-O {[%emt 0:00:02]} 9. Nge2 {[%emt 0:00:01]} Re8 {[%emt 0:00:01]} 10. O-O {[%emt 0:00:02]} Nf8 {[%emt 0:00:08]} 11. f3 {[%emt 0:00:02]} g6 {[%emt 0:00:20]} 12. Bh4 {[%emt 0:00:06]} b5 {[%emt 0:00:08]} 13. Rad1 {[%emt 0:00:03]} Bb7 {[%emt 0:00:07]} 14. Rfe1 {[%emt 0:00:02]} Rc8 {[%emt 0:00:08]} 15. Bf2 {[%emt 0:00:03]} Ne6 {[%emt 0:00:04]} 16. Ng3 {[%emt 0:00:03]} b4 {[%emt 0:00:12]} 17. Na4 {[%emt 0:00:12]} c5 {[%emt 0:00:01]} 18. dxc5 {[%emt 0:00:02]} Nxc5 {[%emt 0:00:02]} 19. Nxc5 {[%emt 0:00:05]} Bxc5 {[%emt 0:00:07]} 20. Qb3 {[%emt 0:00:03]} Qb6 {[%emt 0:00:07]} 21. Nf1 {[%emt 0:00:32]} Re6 {[%emt 0:00:06]} 22. Re2 {[%emt 0:00:20]} Rce8 {[%emt 0:00:08]} 23. Qc2 {[%emt 0:00:14]} Nd7 {[%emt 0:00:06]} 24. Qd2 {[%emt 0:00:22]} Ne5 {[%emt 0:00:05]} 25. b3 {[%emt 0:00:20]} Nxd3 {[%emt 0:00:06]} 26. Qxd3 {[%emt 0:00:02]} Ba6 {[%emt 0:00:01]} 27. Qd2 {[%emt 0:00:05]} Bxe2 {[%emt 0:00:04]} 28. Qxe2 {[%emt 0:00:01]} d4 {[%emt 0:00:06]} 29. e4 {[%emt 0:00:03]} d3 {[%emt 0:00:08]} 30. Qd2 {[%emt 0:00:02]} Bxf2+ {[%emt 0:00:12]} 31. Qxf2 {[%emt 0:00:01]} Qxf2+ {[%emt 0:00:30]} 32. Kxf2 {[%emt 0:00:02]} Rd8 {[%emt 0:00:06]} 33. Ne3 {[%emt 0:00:02]} Rc6 {[%emt 0:00:05]} 34. Nc4 {[%emt 0:00:02]} a5 {[%emt 0:00:11]} 35. Ke3 {[%emt 0:00:07]} a4 {[%emt 0:00:04]} 36. Rxd3 {[%emt 0:00:09]} Rxd3+ {[%emt 0:00:03]} 37. Kxd3 {[%emt 0:00:01]} axb3 {[%emt 0:00:04]} 38. axb3 {[%emt 0:00:02]} Ra6 {[%emt 0:00:03]} 39. Kc2 {[%emt 0:00:13]} Ra2+ {[%emt 0:00:05]} 40. Nb2 {[%emt 0:00:05]} Kg7 {[%emt 0:00:04]} 41. Kb1 {[%emt 0:00:06]} Ra3 {[%emt 0:00:03]} 42. Kc2 {[%emt 0:00:02]} Kf6 {[%emt 0:00:02]} 43. g3 {[%emt 0:00:10]} h5 {[%emt 0:00:01]} 44. h3 {[%emt 0:00:02]} g5 {[%emt 0:00:03]} 45. Nc4 {[%emt 0:00:02]} Ra1 {[%emt 0:00:06]} 46. g4 {[%emt 0:00:08]} h4 {[%emt 0:00:04]} 47. Kd3 {[%emt 0:00:03]} Rh1 {[%emt 0:00:05]} 48. e5+ {[%emt 0:00:05]} Ke6 {[%emt 0:00:02]} 49. Nd2 {[%emt 0:00:11]} Kxe5 {[%emt 0:00:05]} 50. Kc4 {[%emt 0:00:07]} Rxh3 {[%emt 0:00:04]} 51. Kxb4 {[%emt 0:00:03]} Rh2 {[%emt 0:00:03]} 52. f4+ {[%emt 0:00:01]} Kxf4 {[%emt 0:00:01]} 0-1

[Event "Austria Championship Blitz 2024"]
[Site "Innsbruck"]
[Date "2024.06.01"]
[Round "3.10"]
[White "Kruckenhauser, Arthur"]
[Black "Walder, Elias"]
[Result "1-0"]
[ECO "C06"]
[WhiteElo "2340"]
[BlackElo "2035"]
[Annotator "RC"]
[PlyCount "83"]
[EventDate "2024.06.01"]
[EventType "swiss"]
[EventCountry "AUT"]
[SourceTitle "playchess.com"]
[Source "ChessBase"]
[SourceQuality "1"]
[TimeControl "180+2"]

1. e4 {[%emt 0:00:01]} e6 {[%emt 0:00:00]} 2. d4 {[%emt 0:00:01]} d5 {[%emt 0:00:01]} 3. Nd2 {[%emt 0:00:01]} Nf6 {[%emt 0:00:01]} 4. e5 {[%emt 0:00:00]} Nfd7 {[%emt 0:00:01]} 5. Bd3 {[%emt 0:00:02]} c5 {[%emt 0:00:00]} 6. c3 {[%emt 0:00:00]} Nc6 {[%emt 0:00:01]} 7. Ne2 {[%emt 0:00:01]} cxd4 8. cxd4 {[%emt 0:00:01]} f6 {[%emt 0:00:02]} 9. exf6 {[%emt 0:00:01]} Nxf6 {[%emt 0:00:01]} 10. Nf3 {[%emt 0:00:01]} Bd6 {[%emt 0:00:01]} 11. O-O {[%emt 0:00:02]} Qc7 {[%emt 0:00:01]} 12. h3 {[%emt 0:00:01]} O-O {[%emt 0:00:01]} 13. Be3 {[%emt 0:00:01]} Bd7 {[%emt 0:00:01]} 14. Re1 {[%emt 0:00:01]} Rac8 {[%emt 0:00:02]} 15. a3 {[%emt 0:00:05]} a6 {[%emt 0:00:01]} 16. Rc1 {[%emt 0:00:02]} Qb6 {[%emt 0:00:02]} 17. b4 {[%emt 0:00:03]} Na7 {[%emt 0:00:09]} 18. Ne5 {[%emt 0:00:09]} Bb5 {[%emt 0:00:06]} 19. Bb1 {[%emt 0:00:13]} Bxe2 {[%emt 0:00:04]} 20. Qxe2 {[%emt 0:00:05]} Qb5 {[%emt 0:00:10]} 21. Qf3 {[%emt 0:00:16]} Qe8 {[%emt 0:00:09]} 22. Rxc8 {[%emt 0:00:05]} Qxc8 {[%emt 0:00:03]} 23. Rc1 {[%emt 0:00:08]} Qe8 {[%emt 0:00:02]} 24. Qe2 {[%emt 0:00:07]} Nc6 {[%emt 0:00:03]} 25. Nxc6 {[%emt 0:00:03]} bxc6 {[%emt 0:00:01]} 26. Qxa6 {[%emt 0:00:02]} Nh5 {[%emt 0:00:23]} 27. Qxc6 {[%emt 0:00:05]} Qe7 {[%emt 0:00:06]} 28. Qc2 {[%emt 0:00:35]} g6 {[%emt 0:00:04]} 29. Qe2 {[%emt 0:00:04]} Nf4 {[%emt 0:00:01]} 30. Bxf4 {[%emt 0:00:24]} Bxf4 {[%emt 0:00:01]} 31. Re1 {[%emt 0:00:03]} Re8 {[%emt 0:00:10]} 32. g3 {[%emt 0:00:04]} Bd6 {[%emt 0:00:10]} 33. Qg4 {[%emt 0:00:05]} Qf7 {[%emt 0:00:07]} 34. h4 {[%emt 0:00:05]} Kg7 {[%emt 0:00:05]} 35. Bd3 {[%emt 0:00:04]} Rf8 {[%emt 0:00:02]} 36. Re2 {[%emt 0:00:05]} Qa7 {[%emt 0:00:13]} 37. Qxe6 {[%emt 0:00:09]} Qxa3 {[%emt 0:00:01]} 38. Qxd6 {[%emt 0:00:07]} Qxd3 {[%emt 0:00:03]} 39. Re7+ {[%emt 0:00:09]} Kg8 {[%emt 0:00:07]} 40. Qe6+ {[%emt 0:00:02]} Kh8 {[%emt 0:00:01]} 41. Qe5+ {[%emt 0:00:01]} Kg8 {[%emt 0:00:01]} 42. Qg7# {[%emt 0:00:01]} 1-0

[Event "Austria Championship Blitz 2024"]
[Site "Innsbruck"]
[Date "2024.06.01"]
[Round "3.11"]
[White "Hengl, Philip"]
[Black "Schnegg, Anna-Lena"]
[Result "1-0"]
[ECO "A10"]
[WhiteElo "2173"]
[BlackElo "2124"]
[Annotator "RC"]
[PlyCount "143"]
[EventDate "2024.06.01"]
[EventType "swiss"]
[EventCountry "AUT"]
[SourceTitle "playchess.com"]
[Source "ChessBase"]
[SourceQuality "1"]
[TimeControl "180+2"]

1. Nf3 {[%emt 0:00:01]} g6 {[%emt 0:00:01]} 2. d4 {[%emt 0:00:04]} Bg7 {[%emt 0:00:01]} 3. c4 {[%emt 0:00:01]} e6 {[%emt 0:00:02]} 4. Nc3 {[%emt 0:00:02]} Ne7 {[%emt 0:00:01]} 5. e3 {[%emt 0:00:01]} b6 {[%emt 0:00:01]} 6. Be2 {[%emt 0:00:05]} Bb7 {[%emt 0:00:01]} 7. O-O {[%emt 0:00:02]} O-O {[%emt 0:00:01]} 8. b3 {[%emt 0:00:05]} d5 {[%emt 0:00:02]} 9. Bb2 {[%emt 0:00:03]} Nd7 {[%emt 0:00:04]} 10. Rc1 {[%emt 0:00:07]} Rc8 {[%emt 0:00:01]} 11. Qd2 {[%emt 0:00:07]} a6 {[%emt 0:00:30]} 12. cxd5 {[%emt 0:00:15]} exd5 {[%emt 0:00:05]} 13. Rfd1 {[%emt 0:00:10]} c5 {[%emt 0:00:19]} 14. dxc5 {[%emt 0:00:06]} bxc5 {[%emt 0:00:04]} 15. Na4 {[%emt 0:00:08]} Bxb2 {[%emt 0:00:37]} 16. Qxb2 {[%emt 0:00:02]} Qa5 {[%emt 0:00:11]} 17. Qd2 {[%emt 0:00:13]} Qxd2 {[%emt 0:00:19]} 18. Rxd2 {[%emt 0:00:02]} Rc7 {[%emt 0:00:06]} 19. Rdc2 {[%emt 0:00:19]} Rfc8 {[%emt 0:00:01]} 20. Ne1 {[%emt 0:00:10]} a5 {[%emt 0:00:48]} 21. Bb5 {[%emt 0:00:15]} Bc6 {[%emt 0:00:05]} 22. Bxc6 {[%emt 0:00:04]} Rxc6 {[%emt 0:00:01]} 23. Kf1 {[%emt 0:00:26]} c4 {[%emt 0:00:02]} 24. bxc4 {[%emt 0:00:03]} dxc4 {[%emt 0:00:05]} 25. Nf3 {[%emt 0:00:04]} Nf5 {[%emt 0:00:12]} 26. g4 {[%emt 0:00:01]} Nd6 {[%emt 0:00:02]} 27. Nd4 {[%emt 0:00:00]} R6c7 {[%emt 0:00:02]} 28. Rb1 {[%emt 0:00:07]} Nc5 {[%emt 0:00:03]} 29. Nxc5 {[%emt 0:00:09]} Rxc5 {[%emt 0:00:00]} 30. Ke2 {[%emt 0:00:08]} Kg7 {[%emt 0:00:02]} 31. Rb6 {[%emt 0:00:08]} Ne4 {[%emt 0:00:05]} 32. f3 {[%emt 0:00:01]} Nf6 {[%emt 0:00:01]} 33. e4 {[%emt 0:00:16]} R8c7 {[%emt 0:00:02]} 34. Rb5 {[%emt 0:00:05]} Nd7 {[%emt 0:00:05]} 35. Rxc5 {[%emt 0:00:03]} Rxc5 {[%emt 0:00:01]} 36. Ke3 {[%emt 0:00:14]} a4 {[%emt 0:00:03]} 37. Ne2 {[%emt 0:00:04]} Kf6 {[%emt 0:00:02]} 38. Nc3 {[%emt 0:00:01]} Ke6 {[%emt 0:00:01]} 39. f4 {[%emt 0:00:02]} Ra5 {[%emt 0:00:01]} 40. Rb2 {[%emt 0:00:01]} Nc5 {[%emt 0:00:03]} 41. Rb6+ {[%emt 0:00:01]} Kd7 {[%emt 0:00:02]} 42. Nd5 {[%emt 0:00:02]} Nd3 {[%emt 0:00:03]} 43. Rb7+ {[%emt 0:00:01]} Ke8 {[%emt 0:00:03]} 44. Rc7 {[%emt 0:00:05]} Rc5 {[%emt 0:00:01]} 45. Rxc5 {[%emt 0:00:01]} Nxc5 {[%emt 0:00:01]} 46. Kd4 {[%emt 0:00:01]} Ne6+ {[%emt 0:00:07]} 47. Kxc4 {[%emt 0:00:01]} h5 {[%emt 0:00:00]} 48. h3 {[%emt 0:00:01]} hxg4 49. hxg4 {[%emt 0:00:01]} g5 {[%emt 0:00:04]} 50. f5 {[%emt 0:00:02]} Nf8 {[%emt 0:00:04]} 51. e5 {[%emt 0:00:02]} Nd7 {[%emt 0:00:01]} 52. Nf6+ {[%emt 0:00:03]} Nxf6 {[%emt 0:00:03]} 53. exf6 {[%emt 0:00:01]} Kd7 {[%emt 0:00:01]} 54. Kc5 {[%emt 0:00:05]} a3 {[%emt 0:00:02]} 55. Kd5 {[%emt 0:00:01]} Kc7 {[%emt 0:00:01]} 56. Kc5 {[%emt 0:00:02]} Kd7 {[%emt 0:00:00]} 57. Kb4 {[%emt 0:00:02]} Kd6 {[%emt 0:00:01]} 58. Kxa3 {[%emt 0:00:01]} Ke5 {[%emt 0:00:00]} 59. Kb4 {[%emt 0:00:02]} Kf4 {[%emt 0:00:01]} 60. a4 {[%emt 0:00:00]} Kxg4 {[%emt 0:00:01]} 61. a5 {[%emt 0:00:01]} Kh3 {[%emt 0:00:02]} 62. a6 {[%emt 0:00:01]} g4 {[%emt 0:00:01]} 63. a7 {[%emt 0:00:01]} g3 {[%emt 0:00:00]} 64. a8=Q {[%emt 0:00:01]} g2 {[%emt 0:00:01]} 65. Qf3+ {[%emt 0:00:04]} Kh2 {[%emt 0:00:01]} 66. Qh5+ {[%emt 0:00:03]} Kg3 {[%emt 0:00:02]} 67. Qg5+ {[%emt 0:00:03]} Kf3 {[%emt 0:00:01]} 68. Kc5 {[%emt 0:00:03]} Kf2 {[%emt 0:00:01]} 69. Qxg2+ {[%emt 0:00:03]} Kxg2 {[%emt 0:00:01]} 70. Kd6 {[%emt 0:00:00]} Kg3 {[%emt 0:00:01]} 71. Ke7 {[%emt 0:00:01]} Kg4 {[%emt 0:00:02]} 72. Kxf7 {[%emt 0:00:01]} 1-0